bitfinex/quotes_BTCUSD_20210101
["timestamp","ask_amount","ask_price","bid_price","bid_amount"]
[1609528789062,0.91087566,29146.0,29143.0,0.0007014]
[1609528789260,0.3588,29145.0,29143.0,0.0007014]
[1609528789466,2.56087566,29144.0,29143.0,0.0007014]
[1609528789659,0.16,29145.0,29143.0,0.0007014]
[1609528789871,0.27872033,29150.0,29143.0,0.0007014]
[1609528789872,0.41135946,29149.0,29143.0,0.0007014]
[1609528790063,0.91087566,29145.0,29143.0,0.0007014]
[1609528790460,4.3338,29144.0,29143.0,0.0007014]
[1609528790660,5.40944366,29144.0,29143.0,0.0007014]
[1609528790864,5.60824366,29144.0,29143.0,0.0007014]
[1609528791467,6.29949366,29144.0,29143.0,0.0007014]
[1609528791685,9.59949366,29144.0,29143.0,0.0007014]
[1609528792285,9.88259366,29144.0,29143.0,0.0007014]
[1609528793087,11.2737154,29144.0,29143.0,1.4e-06]
[1609528793295,11.2737154,29144.0,29128.0,0.669]
[1609528793296,0.91087566,29138.0,29128.0,0.669]
[1609528793505,0.363568,29136.0,29122.0,0.5146]
[1609528793713,1.52083512,29135.0,29120.0,0.6696]
[1609528793895,0.33180302,29132.0,29120.0,0.6696]
[1609528794212,0.33180302,29131.0,29121.0,0.09412434]
[1609528794400,0.33124716,29133.0,29121.0,0.09335834]
[1609528794605,0.33124716,29133.0,29121.0,0.42219139]
[1609528794606,0.14,29132.0,29121.0,0.42219139]
[1609528794802,0.14,29132.0,29122.0,0.09335834]
[1609528795006,0.33124716,29131.0,29120.0,1.1842]
[1609528795195,1.64904828,29131.0,29120.0,1.1842]
[1609528795452,0.58656405,29130.0,29120.0,1.1842]
[1609528795654,1.23808882,29130.0,29120.0,1.1842]
[1609528795850,0.005,29133.0,29120.0,1.1842]
[1609528796055,0.185,29129.0,29121.0,0.02846812]
[1609528796358,0.58631632,29132.0,29121.0,0.09440624]
[1609528796561,0.58699106,29132.0,29121.0,0.09440624]
[1609528796758,0.5920668,29135.0,29121.0,0.09440624]
[1609528796951,0.33124716,29134.0,29121.0,0.09440624]
[1609528797155,0.16,29133.0,29121.0,0.12287436]
[1609528797351,0.33124716,29134.0,29122.0,0.09440624]
[1609528797554,0.2038,29135.0,29122.0,0.09440624]
[1609528797555,0.005,29135.0,29122.0,0.09440624]
[1609528797857,0.005,29135.0,29126.0,0.5145]
[1609528798057,0.005,29135.0,29126.0,0.67048]
[1609528798251,0.90559376,29134.0,29126.0,0.67048]
[1609528798558,0.46624716,29133.0,29126.0,0.67048]
[1609528798755,0.33124716,29135.0,29126.0,0.67048]
[1609528799052,1.23684092,29135.0,29126.0,0.67048]
[1609528799252,0.33124716,29134.0,29126.0,0.67048]
[1609528799456,0.90559376,29136.0,29126.0,0.67048]
[1609528799664,0.32844492,29135.0,29127.0,0.12287436]
[1609528799871,0.32864492,29140.0,29128.0,0.09440624]
[1609528800067,0.90579376,29140.0,29129.0,0.02846812]
[1609528800255,0.0002,29140.0,29129.0,0.02846812]
[1609528800467,0.32864492,29140.0,29129.0,0.02846812]
[1609528800662,1.23403868,29140.0,29129.0,0.02846812]
[1609528800861,1.23403868,29139.0,29129.0,0.02846812]
[1609528801086,1.23403868,29139.0,29133.0,0.5143]
[1609528801087,0.90559376,29139.0,29133.0,0.5143]
[1609528801284,0.32864492,29143.0,29133.0,0.71356]
[1609528801285,0.548768,29138.0,29133.0,0.71356]
[1609528801482,0.90559376,29137.0,29133.0,0.19926]
[1609528801682,0.90579376,29137.0,29133.0,0.19926]
[1609528801876,1.26916176,29136.0,29133.0,0.19926]
[1609528802678,0.363568,29134.0,29133.0,0.19926]
[1609528802887,0.19,29135.0,29133.0,0.19926]
[1609528803083,0.0002,29141.0,29133.0,0.19926]
[1609528803283,1.26916176,29140.0,29133.0,0.19926]
[1609528803490,0.363568,29138.0,29133.0,0.19926]
[1609528803688,0.90559376,29137.0,29130.0,0.6858]
[1609528804194,0.135,29136.0,29124.0,0.6859]
[1609528804391,0.90559376,29135.0,29126.0,0.63548]
[1609528804593,0.91059376,29135.0,29126.0,0.4795]
[1609528804794,1.26916176,29134.0,29126.0,0.4795]
[1609528804993,0.90559376,29133.0,29126.0,0.4795]
[1609528805191,0.363568,29132.0,29126.0,0.4795]
[1609528805391,0.90559376,29131.0,29125.0,0.2193]
[1609528805691,0.588568,29130.0,29125.0,0.2193]
[1609528805886,0.363568,29128.0,29125.0,0.2193]
[1609528806295,0.0002,29129.0,29125.0,0.2193]
[1609528806490,0.363568,29128.0,29125.0,0.2193]
[1609528806698,0.36301214,29128.0,29125.0,0.2193]
[1609528807099,0.71340001,29132.0,29125.0,0.2193]
[1609528807302,0.363529,29130.0,29125.0,0.2193]
[1609528807700,1.26912276,29130.0,29125.0,0.2193]
[1609528807900,0.90559376,29129.0,29125.0,0.2193]
[1609528808103,0.363529,29128.0,29125.0,0.2193]
[1609528808305,0.90559376,29127.0,29125.0,0.2193]
[1609528808599,0.363529,29126.0,29125.0,0.2193]
[1609528808795,3.413529,29126.0,29125.0,0.2193]
[1609528809104,4.82912276,29126.0,29125.0,0.2193]
[1609528809507,7.07912276,29126.0,29125.0,0.2193]
[1609528809700,4.82912276,29126.0,29125.0,0.2193]
[1609528810404,8.77912276,29126.0,29125.0,0.2193]
[1609528810558,9.46537276,29126.0,29125.0,0.2193]
[1609528811264,10.18387276,29126.0,29117.0,0.4976]
[1609528811458,2.63884194,29125.0,29117.0,0.4976]
[1609528811662,2.00217094,29124.0,29117.0,0.4976]
[1609528811860,1.23423868,29123.0,29117.0,0.4976]
[1609528812162,0.32844492,29121.0,29117.0,0.4976]
[1609528812402,0.363529,29120.0,29117.0,0.4976]
[1609528814000,0.363529,29120.0,29117.0,0.4926]
[1609528814201,1.26912276,29120.0,29117.0,0.4926]
[1609528814405,0.19,29119.0,29117.0,0.4926]
[1609528814603,3.21912276,29118.0,29117.0,0.4926]
[1609528814805,1.26912276,29118.0,29117.0,0.4926]
[1609528815004,0.363529,29118.0,29117.0,0.4926]
[1609528815205,1.26912276,29118.0,29115.0,0.0002]
[1609528815415,3.413529,29116.0,29115.0,0.0002]
[1609528816129,0.363529,29116.0,29115.0,0.0002]
[1609528816330,2.513529,29116.0,29115.0,0.0002]
[1609528816535,0.763529,29116.0,29115.0,0.0002]
[1609528816734,0.363529,29116.0,29115.0,0.0002]
[1609528817441,1.563529,29116.0,29115.0,0.0002]
[1609528817636,1.563529,29116.0,29114.0,0.2149]
[1609528817833,0.363529,29116.0,29114.0,0.2149]
[1609528818038,0.363529,29116.0,29113.0,0.0006]
[1609528818732,0.36297314,29116.0,29113.0,0.0006]
[1609528822563,0.32844492,29115.0,29113.0,0.0006]
[1609528822770,7.3,29113.0,29112.0,0.0002]
[1609528822974,9.93197578,29113.0,29112.0,0.0002]
[1609528823173,7.82724492,29110.0,29109.0,0.0008]
[1609528823362,9.76373368,29110.0,29109.0,0.0008]
[1609528823561,9.43528876,29110.0,29109.0,0.0008]
[1609528824558,10.43528876,29110.0,29109.0,0.0008]
[1609528824764,10.44028876,29110.0,29109.0,0.0008]
[1609528824960,10.41028876,29110.0,29109.0,0.0008]
[1609528825790,8.20559376,29109.0,29107.0,0.1967]
[1609528825991,1.59757368,29108.0,29107.0,0.1967]
[1609528826286,7.49882368,29108.0,29107.0,0.1967]
[1609528826589,7.60027086,29108.0,29107.0,0.1967]
[1609528826783,6.6996771,29108.0,29107.0,0.1967]
[1609528827185,7.60027086,29108.0,29107.0,0.1967]
[1609528827421,2.95027086,29108.0,29107.0,0.1967]
[1609528827719,2.60211876,29108.0,29107.0,0.1967]
[1609528827924,2.52037876,29108.0,29107.0,0.1967]
[1609528828123,1.61922914,29108.0,29107.0,0.1967]
[1609528828327,1.04922914,29108.0,29107.0,0.14608334]
[1609528828535,0.68625,29108.0,29107.0,0.14608334]
[1609528828728,1.06126192,29108.0,29107.0,0.15362234]
[1609528828924,1.21626192,29108.0,29107.0,0.15362234]
[1609528831057,1.03868232,29108.0,29107.0,0.30709234]
[1609528831256,1.03868232,29108.0,29107.0,1.65709234]
[1609528831455,1.03868232,29108.0,29107.0,0.30709234]
[1609528832064,1.03868232,29108.0,29107.0,0.30676334]
[1609528832663,1.17868232,29108.0,29107.0,0.30676334]
[1609528834158,1.17868232,29108.0,29107.0,0.14829334]
[1609528838085,1.17868232,29108.0,29107.0,0.19007602]
[1609528838986,1.17868232,29108.0,29107.0,0.18507602]
[1609528839488,2.44281408,29108.0,29107.0,0.17753702]
[1609528839688,2.65873408,29108.0,29107.0,0.17753702]
[1609528839887,2.65873408,29108.0,29107.0,0.13575434]
[1609528840085,8.15817822,29108.0,29107.0,0.13575434]
[1609528840743,8.52903868,29107.0,29106.0,0.13615434]
[1609528840933,9.89257668,29107.0,29106.0,0.13615434]
[1609528842573,10.55569122,29107.0,29106.0,0.13615434]
[1609528843272,10.56069122,29107.0,29106.0,0.13615434]
[1609528844681,0.15,29103.0,29101.0,0.0018]
[1609528844984,0.15,29103.0,29099.0,1.50108729]
[1609528844985,7.3,29101.0,29099.0,1.50108729]
[1609528845188,10.09637668,29100.0,29099.0,1.50088729]
[1609528845384,9.89257668,29100.0,29099.0,1.41504685]
[1609528846194,8.99198292,29100.0,29099.0,1.41504685]
[1609528846406,1.69198292,29100.0,29099.0,1.41504685]
[1609528846891,0.69198292,29100.0,29099.0,1.41504685]
[1609528847093,3.54198292,29100.0,29099.0,1.41504685]
[1609528847498,4.44257668,29100.0,29099.0,1.41504685]
[1609528847691,3.54198292,29100.0,29099.0,1.41504685]
[1609528847894,5.24257668,29100.0,29099.0,1.41504685]
[1609528848099,4.34198292,29100.0,29099.0,1.41504685]
[1609528848298,5.24257668,29100.0,29099.0,1.41504685]
[1609528848498,4.34198292,29100.0,29099.0,1.51680257]
[1609528850001,5.24257668,29100.0,29099.0,1.51680257]
[1609528850304,5.24257668,29100.0,29099.0,1.41504685]
[1609528850698,4.34198292,29100.0,29099.0,1.41504685]
[1609528850899,5.24257668,29100.0,29099.0,1.41504685]
[1609528851403,5.24202082,29100.0,29099.0,1.51682319]
[1609528852023,4.34142706,29100.0,29099.0,1.51682319]
[1609528852221,5.24202082,29100.0,29099.0,1.41504685]
[1609528852423,5.27202082,29100.0,29099.0,1.41504685]
[1609528852724,4.37142706,29100.0,29099.0,1.41504685]
[1609528853325,1.52142706,29100.0,29099.0,1.51892634]
[1609528853529,0.72142706,29100.0,29099.0,1.51892634]
[1609528853739,0.35844492,29100.0,29099.0,1.62589158]
[1609528853934,0.03,29100.0,29099.0,1.6543597]
[1609528855133,0.03,29100.0,29099.0,1.62589158]
[1609528855324,0.03,29100.0,29099.0,1.52648534]
[1609528855572,0.03,29100.0,29099.0,1.56327671]
[1609528856766,0.03,29100.0,29099.0,1.55327671]
[1609528858596,0.03,29100.0,29099.0,1.44939722]
[1609528859295,0.03,29100.0,29099.0,1.54880346]
[1609528859697,0.03,29100.0,29099.0,1.55307052]
[1609528860297,0.03,29100.0,29099.0,1.54807052]
[1609528862929,0.02944414,29100.0,29099.0,1.54807052]
[1609528864628,0.02944414,29100.0,29099.0,1.44439722]
[1609528865336,8.68e-06,29101.0,29100.0,0.09940624]
[1609528865539,8.68e-06,29101.0,29100.0,0.52693054]
[1609528865744,1.06e-05,29108.0,29107.0,0.09940624]
[1609528865939,1.06e-05,29108.0,29107.0,1.34702714]
[1609528866143,1.06e-05,29108.0,29107.0,2.30321432]
[1609528866346,0.0002,29124.0,29115.0,0.09940624]
[1609528866545,0.0002,29124.0,29120.0,0.008062]
[1609528866791,0.0006,29129.0,29123.0,0.008055]
[1609528866987,0.0006,29129.0,29123.0,0.30124124]
[1609528867192,0.0006,29129.0,29124.0,0.02846812]
[1609528867383,0.0004,29129.0,29125.0,0.008046]
[1609528867795,0.0004,29135.0,29125.0,0.008046]
[1609528867796,0.90059376,29134.0,29125.0,0.008046]
[1609528867984,0.135,29133.0,29125.0,0.008046]
[1609528868190,1.03559376,29133.0,29125.0,0.522546]
[1609528868382,0.90059376,29133.0,29125.0,0.522546]
[1609528868591,0.90559376,29139.0,29125.0,0.522546]
[1609528868789,0.90559376,29139.0,29125.0,0.5145]
[1609528868790,1.58413576,29138.0,29125.0,0.5145]
[1609528868984,0.90559376,29137.0,29125.0,0.5145]
[1609528869183,0.363542,29136.0,29125.0,0.5145]
[1609528869384,1.24059376,29136.0,29125.0,0.5145]
[1609528869581,0.90059376,29135.0,29125.0,0.5145]
[1609528870182,0.90059376,29135.0,29126.0,0.008038]
[1609528870382,0.89559376,29135.0,29125.0,0.5145]
[1609528870628,0.89559376,29137.0,29125.0,0.5145]
[1609528870824,0.363542,29136.0,29125.0,0.5145]
[1609528871126,0.363542,29134.0,29125.0,0.5145]
[1609528871325,0.89559376,29133.0,29125.0,0.5145]
[1609528871537,0.548542,29132.0,29125.0,0.5145]
[1609528871746,0.363542,29128.0,29118.0,1.1607]
[1609528871937,0.90059376,29127.0,29118.0,1.1607]
[1609528872133,1.44413576,29126.0,29109.0,0.8577]
[1609528872334,1.20676672,29125.0,29111.0,0.10440624]
[1609528872545,1.20059376,29124.0,29110.0,0.7201673]
[1609528872730,0.368542,29123.0,29111.0,0.10940624]
[1609528872931,0.2552,29123.0,29112.0,0.008072]
[1609528873137,0.0002,29123.0,29114.0,0.5148]
[1609528873526,0.005,29124.0,29114.0,0.5148]
[1609528873736,0.523542,29123.0,29114.0,0.5148]
[1609528873925,0.523742,29123.0,29114.0,0.5148]
[1609528874639,0.363542,29121.0,29114.0,0.5148]
[1609528874825,0.265,29120.0,29114.0,0.5148]
[1609528875028,0.363542,29119.0,29114.0,0.5148]
[1609528875730,0.363542,29118.0,29114.0,0.5148]
[1609528875926,0.0002,29119.0,29115.0,0.008071]
[1609528876158,0.0002,29119.0,29115.0,0.11747724]
[1609528876358,0.0002,29128.0,29118.0,3.208069]
[1609528876550,0.0002,29128.0,29119.0,0.10940624]
[1609528876753,0.0002,29128.0,29122.0,0.5146]
[1609528877054,0.0002,29132.0,29123.0,0.008051]
[1609528877556,0.0002,29132.0,29123.0,0.11745724]
[1609528877860,0.0002,29134.0,29125.0,0.008048]
[1609528878548,0.15739305,29137.0,29125.0,0.008048]
[1609528878749,0.15239305,29137.0,29125.0,0.008048]
[1609528878950,0.0002,29136.0,29125.0,0.008048]
[1609528879649,0.0002,29134.0,29125.0,0.008048]
[1609528879850,0.1604721,29134.0,29125.0,0.008048]
[1609528880048,0.0002,29134.0,29125.0,0.008048]
[1609528880450,0.0002,29136.0,29125.0,0.008048]
[1609528880953,0.68137,29127.0,29125.0,0.008048]
[1609528881654,0.67137,29127.0,29125.0,0.008048]
[1609528882278,0.67137,29127.0,29124.0,0.08556]
[1609528882279,0.363542,29126.0,29124.0,0.08556]
[1609528882478,7.543041,29127.0,29125.0,0.008047]
[1609528882678,0.363542,29126.0,29124.0,0.08556]
[1609528882878,1.0,29125.0,29124.0,0.08556]
[1609528883075,1.0,29125.0,29124.0,0.008049]
[1609528884277,1.0,29125.0,29124.0,0.11745524]
[1609528884588,7.543041,29127.0,29125.0,0.10940624]
[1609528884794,7.543041,29127.0,29126.0,6.36745324]
[1609528885183,7.543041,29127.0,29126.0,6.39592136]
[1609528885378,7.543041,29127.0,29126.0,7.37592136]
[1609528885619,7.538041,29127.0,29126.0,7.37592136]
[1609528886220,7.538041,29127.0,29126.0,7.36092136]
[1609528886913,7.528041,29127.0,29126.0,7.36092136]
[1609528887115,7.523041,29127.0,29126.0,7.36092136]
[1609528887556,7.48300898,29127.0,29126.0,7.36092136]
[1609528887957,7.44297696,29127.0,29126.0,7.36092136]
[1609528888559,7.44297696,29127.0,29126.0,6.62821965]
[1609528888952,7.44017472,29127.0,29126.0,6.62821965]
[1609528890354,7.44017472,29127.0,29126.0,1.00846812]
[1609528890555,7.44017472,29127.0,29126.0,2.85]
[1609528891378,7.44017472,29127.0,29126.0,2.845]
[1609528891877,7.44017472,29127.0,29126.0,2.87346812]
[1609528892075,7.44017472,29127.0,29126.0,2.845]
[1609528892276,7.43517472,29127.0,29126.0,5.215]
[1609528892676,7.43517472,29127.0,29126.0,3.415]
[1609528893096,7.39794494,29127.0,29126.0,3.415]
[1609528893583,7.35791292,29127.0,29126.0,5.465]
[1609528893978,7.35791292,29127.0,29126.0,3.415]
[1609528894379,7.35230844,29127.0,29126.0,5.065]
[1609528895078,7.3018886,29127.0,29126.0,6.165]
[1609528895280,6.95660615,29127.0,29126.0,6.165]
[1609528895584,6.95660615,29127.0,29126.0,5.145]
[1609528895879,6.871671,29127.0,29126.0,5.065]
[1609528898105,6.871671,29127.0,29126.0,6.065]
[1609528898606,6.871671,29127.0,29126.0,7.245]
[1609528898807,6.13763225,29127.0,29126.0,7.27346812]
[1609528899008,6.13763225,29127.0,29126.0,7.80346812]
[1609528899315,6.13763225,29127.0,29126.0,7.775]
[1609528900309,6.13763225,29127.0,29126.0,6.675]
[1609528900769,4.24186579,29127.0,29126.0,7.87650689]
[1609528900970,4.13763225,29127.0,29126.0,7.28674823]
[1609528901868,4.60263121,29127.0,29126.0,7.28674823]
[1609528903215,4.60263121,29127.0,29126.0,7.81674823]
[1609528903619,4.60263121,29127.0,29126.0,6.18674823]
[1609528904419,4.58862001,29127.0,29126.0,7.28674823]
[1609528904821,4.58862001,29127.0,29126.0,4.53674823]
[1609528905025,4.58862001,29127.0,29126.0,4.45674823]
[1609528905629,4.57862001,29127.0,29126.0,4.45674823]
[1609528905823,4.57862001,29127.0,29126.0,7.20674823]
[1609528906237,4.57862001,29127.0,29126.0,7.73674823]
[1609528906434,4.57862001,29127.0,29126.0,7.20674823]
[1609528907138,4.57862001,29127.0,29126.0,4.45674823]
[1609528908439,4.57862001,29127.0,29126.0,4.98674823]
[1609528908640,4.57862001,29127.0,29126.0,4.45674823]
[1609528909240,4.57862001,29127.0,29126.0,5.25674823]
[1609528909439,4.57862001,29127.0,29126.0,4.45674823]
[1609528910238,4.57362001,29127.0,29126.0,4.45674823]
[1609528910449,4.57362001,29127.0,29126.0,4.58127911]
[1609528911150,4.57362001,29127.0,29126.0,1.73627911]
[1609528911449,4.54862001,29127.0,29126.0,1.04174823]
[1609528912363,4.54862001,29127.0,29126.0,2.99174823]
[1609528913562,4.54862001,29127.0,29126.0,3.26674823]
[1609528914163,4.54862001,29127.0,29126.0,4.86674823]
[1609528914771,4.54862001,29127.0,29126.0,4.96674823]
[1609528914970,4.54862001,29127.0,29126.0,3.56674823]
[1609528915170,4.54862001,29127.0,29126.0,3.26674823]
[1609528916408,2.11771401,29127.0,29126.0,5.24179448]
[1609528916604,2.11771401,29127.0,29126.0,5.34179448]
[1609528917100,1.43211401,29127.0,29126.0,3.69179448]
[1609528917299,1.43211401,29127.0,29126.0,5.09179448]
[1609528917540,1.43211401,29127.0,29126.0,5.41386632]
[1609528918035,1.43211401,29127.0,29126.0,4.34689432]
[1609528918237,1.43211401,29127.0,29126.0,2.94689432]
[1609528918641,1.43211401,29127.0,29126.0,2.82184807]
[1609528919238,1.43211401,29127.0,29126.0,4.42184807]
[1609528919640,1.43211401,29127.0,29126.0,4.54693603]
[1609528919840,1.43211401,29127.0,29126.0,4.22486419]
[1609528921877,1.43211401,29127.0,29126.0,4.09183619]
[1609528922075,1.43211401,29127.0,29126.0,4.22486419]
[1609528922677,1.42711401,29127.0,29126.0,3.87486419]
[1609528923375,1.42711401,29127.0,29126.0,2.49183619]
[1609528923973,1.41711401,29127.0,29126.0,3.44183619]
[1609528924278,1.41711401,29127.0,29126.0,0.54183619]
[1609528924478,1.41711401,29127.0,29126.0,0.44183619]
[1609528924682,1.41711401,29127.0,29126.0,0.16683619]
[1609528925516,2.40711401,29127.0,29126.0,0.16683619]
[1609528925726,2.40711401,29127.0,29125.0,0.20688198]
[1609528925727,2.39711401,29127.0,29125.0,0.20688198]
[1609528926027,1.15,29126.0,29125.0,0.16513]
[1609528926224,1.0,29126.0,29125.0,0.2068812]
[1609528926619,1.0,29126.0,29125.0,0.0417512]
[1609528926815,1.37,29126.0,29125.0,0.0417512]
[1609528927424,1.36,29126.0,29125.0,0.36588829]
[1609528928024,0.37,29126.0,29125.0,0.36588829]
[1609528928222,1.46,29126.0,29125.0,0.36588829]
[1609528928525,1.36,29126.0,29125.0,0.36588829]
[1609528928718,1.43958367,29126.0,29125.0,0.36588829]
[1609528929025,1.42888367,29126.0,29125.0,0.0417512]
[1609528929616,1.32888367,29126.0,29125.0,0.0417512]
[1609528930687,1.42888367,29126.0,29125.0,0.0417512]
[1609528930985,1.42888367,29126.0,29124.0,0.8572]
[1609528931182,1.41,29125.0,29124.0,0.8572]
[1609528931990,1.41,29125.0,29122.0,0.83920926]
[1609528932181,0.99,29124.0,29122.0,0.83920926]
[1609528932688,0.99,29124.0,29123.0,0.04175773]
[1609528932885,1.215,29124.0,29123.0,0.04175773]
[1609528933482,0.99,29124.0,29123.0,0.04175773]
[1609528933686,0.98,29125.0,29123.0,0.04175773]
[1609528933885,1.08,29126.0,29123.0,0.04175773]
[1609528934086,0.98,29125.0,29123.0,0.04175773]
[1609528934283,1.35,29125.0,29123.0,0.04175773]
[1609528934588,0.98,29124.0,29123.0,0.04175773]
[1609528934783,1.18,29124.0,29123.0,0.04175773]
[1609528934981,0.2,29124.0,29123.0,0.04175773]
[1609528935189,0.98,29125.0,29123.0,0.04175773]
[1609528936797,0.099474,29124.0,29123.0,0.04175773]
[1609528936999,0.099474,29124.0,29122.0,0.5146]
[1609528937201,0.98,29124.0,29122.0,0.5146]
[1609528937400,0.0002,29126.0,29122.0,0.5146]
[1609528937598,1.079474,29126.0,29122.0,0.5146]
[1609528937807,0.98,29125.0,29122.0,0.5146]
[1609528938001,0.98,29125.0,29124.0,0.04175734]
[1609528938308,0.98,29125.0,29122.0,0.5146]
[1609528938309,0.98,29125.0,29123.0,0.16375032]
[1609528939306,0.23,29124.0,29123.0,0.04175721]
[1609528940104,1.21,29124.0,29123.0,0.04175721]
[1609528940303,0.0002,29126.0,29123.0,0.04175721]
[1609528940508,0.9802,29126.0,29123.0,0.04175721]
[1609528940703,0.94016798,29126.0,29123.0,0.04175721]
[1609528940908,0.46499896,29127.0,29123.0,0.04175721]
[1609528940909,0.21,29125.0,29123.0,0.04175721]
[1609528941108,0.42496694,29127.0,29123.0,0.04175721]
[1609528941413,0.42496694,29127.0,29124.0,0.28141]
[1609528942060,0.4221647,29127.0,29124.0,0.38299503]
[1609528942271,0.4221647,29127.0,29126.0,2.72191186]
[1609528942468,0.4221647,29127.0,29126.0,3.02045081]
[1609528942666,0.4221647,29127.0,29126.0,3.41109288]
[1609528942961,0.4221647,29127.0,29126.0,4.02109288]
[1609528943560,0.4221647,29127.0,29126.0,1.42109288]
[1609528943804,0.4221647,29127.0,29126.0,0.81109288]
[1609528944060,0.4221647,29127.0,29126.0,3.11109288]
[1609528944861,0.4071647,29127.0,29126.0,3.23494908]
[1609528945064,0.4071647,29127.0,29126.0,3.51418102]
[1609528945262,0.4071647,29127.0,29126.0,3.63821472]
[1609528945708,0.4071647,29127.0,29126.0,1.33821472]
[1609528946007,0.4071647,29127.0,29126.0,0.81321472]
[1609528946407,0.4071647,29127.0,29126.0,0.68918102]
[1609528946608,1.3392797,29127.0,29126.0,0.55615302]
[1609528946808,1.3392797,29127.0,29126.0,1.75115302]
[1609528947006,1.3392797,29127.0,29126.0,0.70115302]
[1609528947620,1.3392797,29127.0,29126.0,0.83418102]
[1609528947910,1.3392797,29127.0,29126.0,3.33418102]
[1609528948109,1.3392797,29127.0,29126.0,3.32918102]
[1609528949551,1.3392797,29127.0,29126.0,3.45412105]
[1609528951545,1.3392797,29127.0,29126.0,0.82609305]
[1609528951748,1.3392797,29127.0,29126.0,2.90412105]
[1609528952353,1.3392797,29127.0,29126.0,2.77918102]
[1609528952551,1.3392797,29127.0,29126.0,3.10519204]
[1609528952749,1.3392797,29127.0,29126.0,2.77918102]
[1609528952949,1.3392797,29127.0,29126.0,3.10447523]
[1609528953145,1.3392797,29127.0,29126.0,1.15447523]
[1609528953457,1.3392797,29127.0,29126.0,1.02644723]
[1609528954349,1.3392797,29127.0,29126.0,0.55615302]
[1609528955170,1.3342797,29127.0,29126.0,0.55615302]
[1609528956976,1.3342797,29127.0,29126.0,0.88059575]
[1609528957280,1.3342797,29127.0,29126.0,0.55615302]
[1609528957673,1.3292797,29127.0,29126.0,0.55615302]
[1609528958277,1.3292797,29127.0,29126.0,1.01585992]
[1609528958471,1.3292797,29127.0,29126.0,1.07569194]
[1609528958675,1.3292797,29127.0,29126.0,4.47569194]
[1609528959381,1.3292797,29127.0,29126.0,1.14006146]
[1609528959770,1.3292797,29127.0,29126.0,2.14006146]
[1609528959976,1.32719544,29127.0,29126.0,2.01585992]
[1609528960842,1.32719544,29127.0,29126.0,4.24115302]
[1609528961337,1.32719544,29127.0,29126.0,4.34880762]
[1609528963637,1.32719544,29127.0,29126.0,4.42880762]
[1609528963943,1.32719544,29127.0,29126.0,4.75321553]
[1609528965139,1.32719544,29127.0,29126.0,1.12321553]
[1609528966044,1.32719544,29127.0,29126.0,0.79880762]
[1609528966660,1.32719544,29127.0,29126.0,3.04880762]
[1609528967058,1.32719544,29127.0,29126.0,0.79880762]
[1609528967458,1.32719544,29127.0,29126.0,0.79380762]
[1609528967671,1.32719544,29127.0,29126.0,1.01055615]
[1609528968162,1.32719544,29127.0,29126.0,0.68615302]
[1609528968564,1.32719544,29127.0,29126.0,1.01073413]
[1609528969468,1.32719544,29127.0,29126.0,0.87573413]
[1609528970169,1.32719544,29127.0,29126.0,0.55115302]
[1609528971567,1.32219544,29127.0,29126.0,0.55115302]
[1609528971772,2.26236342,29127.0,29126.0,0.55115302]
[1609528972004,2.81089242,29127.0,29126.0,0.55115302]
[1609528972187,2.88286442,29127.0,29126.0,0.03675302]
[1609528972488,2.88786442,29127.0,29126.0,0.03675302]
[1609528972689,8.58786442,29127.0,29126.0,0.03675302]
[1609528973683,2.88786442,29127.0,29126.0,0.03675302]
[1609528974091,3.40246443,29127.0,29126.0,0.03675302]
[1609528974691,3.33049243,29127.0,29126.0,0.03675302]
[1609528974884,3.40246443,29127.0,29126.0,0.03675302]
[1609528975495,3.40246443,29127.0,29125.0,0.12230917]
[1609528975496,4.213729,29126.0,29125.0,0.12230917]
[1609528975832,5.73086898,29126.0,29123.0,0.12226847]
[1609528975985,1.63536798,29125.0,29123.0,0.12226847]
[1609528976187,1.6321419,29124.0,29122.0,0.12223085]
[1609528976386,2.75369698,29123.0,29122.0,0.12223085]
[1609528977480,1.30369698,29123.0,29122.0,0.12223085]
[1609528978219,1.49869698,29123.0,29122.0,0.12223085]
[1609528978425,0.363532,29123.0,29121.0,0.12215406]
[1609528978624,0.51230742,29127.0,29122.0,0.363532]
[1609528978828,0.363532,29126.0,29122.0,0.24364]
[1609528979124,0.363532,29126.0,29123.0,0.04176057]
[1609528979525,0.363532,29124.0,29123.0,0.04176057]
[1609528980323,0.363532,29124.0,29120.0,0.1637074]
[1609528980728,0.15,29125.0,29119.0,0.55096714]
[1609528981120,0.363532,29124.0,29121.0,0.5145]
[1609528981325,0.51230742,29127.0,29121.0,0.5145]
[1609528981545,0.363532,29126.0,29121.0,0.5145]
[1609528981941,0.363732,29126.0,29121.0,0.5145]
[1609528982250,0.17,29125.0,29121.0,0.5145]
[1609528982448,0.363532,29124.0,29120.0,0.04176087]
[1609528982850,0.363532,29124.0,29122.0,0.04176128]
[1609528983051,0.363532,29124.0,29121.0,0.041761]
[1609528983248,0.363532,29124.0,29123.0,0.04176117]
[1609528983458,0.363532,29124.0,29120.0,0.04176318]
[1609528983459,6.213732,29124.0,29120.0,0.04176318]
[1609528983658,0.82844492,29123.0,29120.0,0.04176318]
[1609528983861,0.363532,29122.0,29120.0,0.04176318]
[1609528984354,2.713532,29121.0,29120.0,0.04176318]
[1609528984556,3.868532,29121.0,29120.0,0.04176318]
[1609528985450,5.518532,29121.0,29120.0,0.04176318]
[1609528985659,0.32844492,29120.0,29118.0,0.04176584]
[1609528985851,5.013532,29119.0,29118.0,0.04176584]
[1609528986252,0.863532,29119.0,29117.0,0.4969]
[1609528986565,3.678232,29118.0,29117.0,0.4969]
[1609528986754,0.878232,29118.0,29117.0,0.53866704]
[1609528987165,0.878232,29118.0,29117.0,0.04176704]
[1609528987365,3.298232,29118.0,29117.0,0.04176704]
[1609528987966,3.497032,29118.0,29117.0,0.04176704]
[1609528988368,4.497032,29118.0,29117.0,0.04176704]
[1609528988577,3.982332,29118.0,29117.0,0.04176704]
[1609528988781,0.363532,29114.0,29112.0,0.04177182]
[1609528988983,0.575802,29114.0,29111.0,0.2193]
[1609528989279,6.713532,29112.0,29111.0,0.2193]
[1609528989476,7.213532,29112.0,29109.0,0.4587]
[1609528989679,3.813532,29110.0,29109.0,0.4587]
[1609528990075,3.813532,29110.0,29109.0,0.50047675]
[1609528990378,4.313532,29110.0,29109.0,0.50047675]
[1609528990870,0.863532,29110.0,29109.0,0.50047675]